bitfinex-derivatives/quotes_ETHF0:USTF0_20241024
["timestamp","ask_amount","ask_price","bid_price","bid_amount"]
[1729776695642,0.39535,2531.3,2531.2,0.8498]
[1729776695851,0.39535,2531.3,2531.2,1.24516]
[1729776696948,0.3954,2531.0,2530.9,0.39539]
[1729776697941,0.98837,2531.3,2530.8,0.79701]
[1729776697942,0.39541,2530.9,2530.8,0.79701]
[1729776698145,0.98837,2531.3,2530.8,0.4016]
[1729776698451,0.39541,2531.0,2530.9,0.39539]
[1729776698652,0.39541,2530.9,2530.8,0.79701]
[1729776700250,0.39541,2530.9,2530.8,0.4016]
[1729776700453,0.434,2531.0,2530.7,3.2078]
[1729776700659,0.39542,2530.8,2530.7,3.2078]
[1729776701442,0.39542,2530.8,2530.5,1.03369079]
[1729776701443,3.9512,2530.8,2530.5,1.03369079]
[1729776701647,0.39545,2530.6,2530.5,1.03369079]
[1729776702255,4.76955,2530.6,2530.5,1.03369079]
[1729776703951,7.97735,2530.6,2530.5,1.03369079]
[1729776705248,7.97735,2530.6,2530.2,0.39552]
[1729776705249,7.5819,2530.6,2530.2,0.39552]
[1729776705453,0.3955,2530.3,2530.2,0.39552]
[1729776705755,1.40869,2530.5,2530.1,0.39552]
[1729776705756,0.39552,2530.2,2530.1,0.39552]
[1729776706144,3.6299,2530.6,2530.1,7.1598]
[1729776706145,3.2078,2530.6,2530.1,7.1598]
[1729776706456,0.39548,2530.5,2530.4,0.39548]
[1729776706655,0.39549,2530.4,2530.3,0.39549]
[1729776706860,0.39548,2530.5,2530.4,0.39548]
[1729776707355,3.60327,2530.6,2530.5,0.39547]
[1729776707556,0.39548,2530.5,2530.4,0.39547]
[1729776708053,3.2078,2530.6,2530.2,1.2831]
[1729776708452,0.39544,2530.7,2530.4,3.2078]
[1729776708652,0.42,2530.8,2530.4,3.2078]
[1729776709251,0.39546,2530.6,2530.5,0.39546]
[1729776709664,0.42,2530.8,2530.4,3.2078]
[1729776709858,0.39547,2530.5,2530.4,3.60329]
[1729776710048,0.39547,2530.5,2530.2,1.2831]
[1729776710250,0.3955,2530.4,2530.3,0.3955]
[1729776710451,0.3955,2530.3,2530.2,1.2831]
[1729776711054,0.39555,2530.0,2529.9,3.60335]
[1729776711252,0.98876,2530.4,2530.0,0.39554]
[1729776711253,0.39555,2530.1,2530.0,0.39554]
[1729776711453,0.39553,2530.2,2530.1,0.39553]
[1729776711862,0.39555,2530.0,2529.9,4.02866]
[1729776712364,0.39554,2530.1,2530.0,0.39554]
[1729776712553,0.433,2530.3,2530.1,0.39552]
[1729776712554,0.39553,2530.2,2530.1,0.39552]
[1729776712953,0.39554,2530.1,2530.0,0.39554]
[1729776713163,0.39554,2530.2,2530.1,0.39552]
[1729776713662,0.39555,2530.1,2530.0,0.39554]
[1729776713854,0.8518,2530.3,2529.9,4.02865]
[1729776713855,0.39555,2530.0,2529.9,4.02865]
[1729776714049,0.39555,2530.0,2529.9,3.2078]
[1729776714454,0.39555,2530.0,2529.8,0.4384]
[1729776714455,0.39556,2529.9,2529.8,0.83398]
[1729776714651,0.39556,2529.9,2529.8,0.4384]
[1729776715162,0.39556,2529.9,2529.8,0.83398]
[1729776715677,0.39555,2530.1,2530.0,0.39555]
[1729776715866,0.8518,2530.3,2529.8,0.4384]
[1729776716159,0.8518,2530.3,2530.0,0.39553]
[1729776716160,0.39554,2530.1,2530.0,0.39553]
[1729776716364,0.39553,2530.2,2530.1,0.39552]
[1729776716562,40.8,2530.2,2530.0,3.2078]
[1729776716765,0.39555,2530.1,2530.0,0.39554]
[1729776717357,0.39556,2529.9,2529.8,0.83396]
[1729776717559,0.39556,2529.9,2529.8,0.4384]
[1729776717959,0.39556,2529.9,2529.8,0.83398]
[1729776718164,0.39556,2529.9,2529.8,0.4384]
[1729776718464,0.39561,2529.7,2529.6,0.3956]
[1729776719365,0.98892,2529.9,2529.5,4.30437036]
[1729776719566,0.39559,2529.8,2529.7,0.39558]
[1729776719777,44.0078,2530.1,2529.7,3.03987036]
[1729776719953,0.3955,2530.3,2530.2,0.39552]
[1729776720359,4.19645,2530.6,2530.1,1.2885]
[1729776720360,3.2078,2530.6,2530.1,1.2885]
[1729776720661,0.39551,2530.3,2530.2,0.3955]
[1729776721161,0.39548,2530.5,2530.4,0.39547]
[1729776721369,41.2257,2530.8,2530.3,3.2078]
[1729776721370,42.21428,2530.8,2530.3,3.2078]
[1729776721660,0.3955,2530.4,2530.3,0.39549]
[1729776722653,0.3955,2530.3,2530.2,3.60331]
[1729776722966,0.39549,2530.4,2530.3,0.39548]
[1729776723760,0.39552,2530.3,2530.2,0.39551]
[1729776723966,0.39552,2530.2,2530.1,1.2885]
[1729776724164,0.39552,2530.2,2530.1,0.438]
[1729776725062,0.39552,2530.2,2529.9,0.4101]
[1729776725063,0.39555,2530.0,2529.9,0.4101]
[1729776725963,0.39556,2529.9,2529.8,0.8654]
[1729776726162,0.39556,2529.9,2529.8,0.4227]
[1729776726960,0.39556,2529.9,2529.5,0.8372]
[1729776726961,0.39561,2529.6,2529.5,0.8372]
[1729776727257,0.39561,2529.6,2529.3,2.47027065]
[1729776727258,0.39564,2529.4,2529.3,0.4111]
[1729776727971,0.39564,2529.4,2528.8,1.03369079]
[1729776727972,0.39572,2529.0,2528.8,1.03369079]
[1729776728278,4.9405413,2529.4,2528.1,3.6189]
[1729776728279,3.2078,2528.9,2528.1,3.6189]
[1729776728458,0.39575,2528.7,2528.1,4.01474]
[1729776728659,0.39577,2528.6,2528.1,3.6189]
[1729776728863,40.8,2528.7,2528.1,0.4111]
[1729776729061,40.8,2528.7,2528.2,3.2078]
[1729776729261,0.39577,2528.6,2528.2,5.67807065]
[1729776729468,40.8,2528.7,2528.4,2.47027065]
[1729776729469,41.19576,2528.7,2528.4,2.47027065]
[1729776729683,0.435,2528.8,2528.4,2.47027065]
[1729776729974,0.39578,2528.6,2528.4,0.4243]
[1729776730270,0.39577,2528.6,2528.4,0.4243]
[1729776730572,0.39576,2528.7,2528.4,0.4243]
[1729776730772,40.8,2528.8,2528.4,0.4243]
[1729776730966,41.19574,2528.8,2528.4,0.4243]
[1729776731164,40.8,2528.8,2528.4,0.4243]
[1729776731368,3.60353,2528.9,2528.4,0.8201]
[1729776731677,0.4397,2529.2,2528.5,3.0416996]
[1729776731873,0.39568,2529.2,2528.7,3.2078]
[1729776732374,3.2078,2529.4,2528.8,0.8445]
[1729776732566,0.39572,2529.0,2528.8,0.8445]
[1729776732764,0.39572,2528.9,2528.8,0.8445]
[1729776733765,3.2078,2529.4,2528.8,0.8445]
[1729776734267,0.39572,2528.9,2528.8,4.0523]
[1729776734668,0.39572,2528.9,2528.8,0.8445]
[1729776734873,0.39572,2528.9,2528.8,0.4133]
[1729776735167,4.0308096,2529.5,2528.5,4.01267]
[1729776735168,0.39576,2528.7,2528.5,4.01267]
[1729776735381,0.39573,2528.9,2528.7,0.39574]
[1729776735577,0.39573,2528.9,2528.8,3.2078]
[1729776736170,0.39573,2528.9,2528.4,0.4243]
[1729776736171,4.94374,2528.9,2528.4,0.4243]
[1729776736471,0.39578,2528.5,2528.4,0.4243]
[1729776736969,0.98927,2529.0,2528.4,0.82009]
[1729776737175,0.39578,2528.5,2528.4,0.4243]
[1729776739072,4.19717,2528.8,2528.2,0.4091]
[1729776739274,0.98941,2528.7,2528.1,0.827]
[1729776739483,0.39583,2528.2,2528.1,0.827]
[1729776739979,0.98948,2528.5,2527.8,0.4355]
[1729776739980,0.39586,2528.0,2527.8,2.39687396]
[1729776740170,0.39585,2528.1,2528.0,0.39585]
[1729776740375,0.39581,2528.3,2527.9,3.60367]
[1729776740578,0.39586,2528.0,2527.9,3.2078]
[1729776740783,0.39586,2528.0,2527.9,3.60368]
[1729776741079,0.39586,2528.0,2527.9,3.2078]
[1729776741479,42.20722,2528.4,2527.8,1.3076]
[1729776741480,0.39588,2527.9,2527.8,1.3076]
[1729776741676,4.19738,2528.2,2527.4,0.25302237]
[1729776741677,3.2078,2528.2,2527.4,0.25302237]
[1729776741872,3.2078,2528.2,2527.4,0.39596]
[1729776741873,0.4106,2527.8,2527.4,0.39596]
[1729776742075,0.05421247,2527.6,2527.3,3.2078]
[1729776742485,0.39596,2527.4,2527.3,3.60376]
[1729776742686,0.39595,2527.5,2527.4,0.39596]
[1729776742987,0.05421247,2527.6,2527.3,3.60376]
[1729776742988,0.39596,2527.4,2527.3,3.60376]
[1729776743187,0.39596,2527.4,2527.3,3.2078]
[1729776743689,0.39596,2527.4,2526.7,3.0416996]
[1729776743690,0.39602,2527.0,2526.9,0.39603]
[1729776743885,4.94671,2527.4,2526.8,3.2078]
[1729776743886,0.98991,2527.4,2526.8,3.2078]
[1729776744184,0.39602,2527.0,2526.9,0.39602]
[1729776744379,0.45022247,2527.1,2527.0,0.39602]
[1729776744576,0.05421247,2527.1,2527.0,0.39602]
[1729776744788,0.45021247,2527.1,2527.0,0.39602]
[1729776744987,0.05421247,2527.1,2527.0,0.39602]
[1729776745381,0.45021247,2527.1,2527.0,0.39602]
[1729776745990,0.05421247,2527.1,2527.0,0.39602]
[1729776746190,0.45021247,2527.1,2527.0,0.39602]
[1729776746393,0.05421247,2527.1,2527.0,0.39602]
[1729776747087,0.05421247,2527.1,2527.0,4.35282]
[1729776747295,0.05421247,2527.1,2527.0,0.39602]
[1729776749594,3.2078,2527.6,2526.9,1.39076]
[1729776749896,0.39594,2527.6,2527.5,0.39594]
[1729776750092,0.39595,2527.5,2527.4,0.39595]
[1729776750286,0.39595,2527.5,2527.1,3.2078]
[1729776750287,4.4420496,2527.8,2527.1,3.6325]
[1729776750487,0.39598,2527.3,2527.2,0.39597]
[1729776750694,0.39595,2527.5,2527.1,3.6325]
[1729776750888,1.40035,2527.8,2527.1,3.6325]
[1729776750889,0.98981,2527.7,2527.1,3.6325]
[1729776751091,0.98982,2527.6,2527.1,3.6325]
[1729776751396,0.39598,2527.3,2527.2,0.39598]
[1729776752292,0.98982,2527.6,2527.2,0.39598]
[1729776752293,0.39597,2527.4,2527.3,0.39596]
[1729776752790,4.35277,2527.4,2527.3,0.39596]
[1729776753907,3.9568,2527.4,2527.3,0.39596]
[1729776754199,0.39596,2527.4,2527.3,0.39596]
[1729776754499,0.39595,2527.5,2527.4,0.39594]
[1729776754794,0.39592,2527.7,2527.6,0.39592]
[1729776755397,0.39589,2527.9,2527.8,0.39588]
[1729776755992,0.3959,2527.8,2527.7,0.39589]
[1729776756199,0.98958,2528.2,2527.6,0.8619]
[1729776756200,0.39591,2527.7,2527.6,0.8619]
[1729776756398,0.39591,2527.7,2527.6,1.25782]
[1729776756900,0.39592,2527.6,2527.5,3.2078]
[1729776757994,3.2078,2528.0,2527.5,3.2078]
[1729776758205,0.39591,2527.8,2527.7,0.3959]
[1729776758700,0.39592,2527.7,2527.6,0.39591]
[1729776759207,0.39592,2527.6,2527.5,3.60374]
[1729776759498,1.42087,2528.0,2527.5,3.2078]
[1729776759693,0.39592,2527.7,2527.6,0.39591]
[1729776760295,0.39589,2527.9,2527.8,0.39588]
[1729776761204,4.19713,2528.9,2527.9,0.9897]
[1729776761405,0.39577,2528.7,2528.6,0.39576]
[1729776761600,0.39579,2528.6,2528.5,0.39577]
[1729776761802,41.2118,2528.8,2528.5,0.39577]
[1729776762098,0.39574,2528.8,2528.7,0.39575]
[1729776762501,4.0256,2529.2,2528.5,3.2078]
[1729776762502,40.8,2529.0,2528.5,3.2078]
[1729776762793,40.8,2529.0,2528.8,3.60353]
[1729776762794,0.39574,2528.9,2528.8,3.60353]
[1729776763002,0.39574,2528.9,2528.8,3.2078]
[1729776763302,5.01482,2529.2,2529.1,0.39569]
[1729776763303,3.60348,2529.2,2529.1,0.39569]
[1729776763490,0.39572,2529.0,2528.9,1.24942]
[1729776764100,44.0078,2529.2,2528.9,1.24942]
[1729776764302,0.3957,2529.1,2529.0,0.39569]
[1729776764797,44.40348,2529.2,2529.1,0.39569]
[1729776765593,44.40348,2529.2,2528.9,1.2735]
[1729776765594,0.3957,2529.1,2529.0,0.3957]
[1729776766302,0.98908,2529.5,2528.9,1.2735]
[1729776766502,0.39567,2529.2,2529.1,3.60349]
[1729776767296,0.39567,2529.2,2529.1,3.2078]
[1729776767502,0.39567,2529.2,2529.1,3.60349]
[1729776768003,0.98908,2529.5,2529.1,10.20284056]
[1729776768004,0.39563,2529.5,2529.1,10.20284056]
[1729776768222,3.2078,2529.8,2529.1,6.24924056]
[1729776768409,0.39565,2529.4,2529.3,0.39564]
[1729776769405,0.39565,2529.4,2529.1,6.24924056]
[1729776769406,41.78901,2529.7,2529.1,3.2078]
[1729776769599,0.98905,2529.6,2529.1,3.2078]
[1729776769905,41.78901,2529.7,2529.1,3.2078]
[1729776769906,0.39567,2529.3,2529.2,0.39567]
[1729776770903,0.39567,2529.3,2529.1,3.2078]
[1729776770904,0.39567,2529.2,2529.1,3.2078]
[1729776771108,0.3957,2529.0,2528.9,4.45721]
[1729776771505,0.4379,2529.3,2528.9,4.0615]
[1729776771710,0.3957,2529.0,2528.9,4.45721]
[1729776772201,4.19689,2529.5,2528.9,4.45721]
[1729776772202,3.2078,2529.5,2528.9,7.10294056]
[1729776772402,0.4379,2529.4,2528.9,7.10294056]
[1729776772604,0.4379,2529.4,2529.0,0.39569]
[1729776772808,0.39569,2529.1,2529.0,0.39569]
[1729776773611,1.42702,2529.4,2528.9,7.10294056]
[1729776773807,0.3957,2529.0,2528.9,4.45721]
[1729776774003,0.98916,2529.3,2528.7,1.591]
[1729776774307,0.98916,2529.3,2528.7,1.98674]
[1729776774308,0.39574,2528.8,2528.7,1.98674]
[1729776774606,1.38514,2528.7,2528.4,0.39579]
[1729776774811,0.39578,2528.5,2528.4,0.39579]
[1729776775205,0.39583,2528.3,2528.2,0.39582]
[1729776775401,0.39583,2528.3,2528.1,3.04144056]
[1729776775402,1.41029,2528.7,2528.1,3.04144056]
[1729776775908,1.41029,2528.7,2528.0,3.2078]
[1729776775909,0.98944,2528.6,2528.0,3.2078]
[1729776776211,0.98951,2528.4,2528.0,3.2078]
[1729776776407,0.39584,2528.2,2528.1,0.39583]
[1729776776605,40.8,2528.5,2528.0,3.60365]
[1729776776606,0.39585,2528.1,2528.0,3.60365]
[1729776777109,0.39584,2528.2,2528.1,0.39583]
[1729776777607,0.39582,2528.3,2528.2,0.39582]
[1729776779610,0.39584,2528.2,2528.1,0.39583]
[1729776780208,40.8,2528.5,2528.0,3.2078]
[1729776780409,0.39584,2528.2,2528.1,0.39583]
[1729776780817,0.98951,2528.4,2528.0,3.2078]
[1729776781106,40.8,2528.5,2528.1,0.39583]
[1729776781107,0.39584,2528.2,2528.1,0.39583]
[1729776781506,0.4209,2528.7,2528.2,0.98958]
[1729776781717,3.2078,2529.6,2528.6,3.2078]
[1729776781917,0.39569,2529.2,2529.1,0.39568]
[1729776782120,0.3957,2529.0,2528.9,6.64494056]
[1729776782412,1.39232,2529.4,2528.9,6.24924056]
[1729776782612,0.39569,2529.2,2529.1,0.39568]
[1729776782814,0.3957,2529.1,2529.0,0.3957]
[1729776783306,0.3957,2529.1,2528.9,6.24924056]
[1729776783307,0.4032,2529.4,2528.9,6.24924056]
[1729776783703,0.3957,2529.1,2529.0,0.39568]
[1729776784909,0.4032,2529.4,2528.9,6.24924056]
[1729776785214,0.39566,2529.4,2529.3,0.39566]
[1729776785421,0.39566,2529.4,2529.3,0.39565]
[1729776785812,0.39566,2529.4,2529.2,3.2078]
[1729776785813,40.8,2529.5,2529.2,3.2078]
[1729776786116,0.39566,2529.3,2529.2,0.39567]
[1729776786722,0.39567,2529.2,2529.1,3.60347]
[1729776787215,0.39567,2529.2,2529.1,0.39569]
[1729776787428,0.39569,2529.1,2529.0,3.12045139]
[1729776787614,0.39568,2529.2,2529.1,0.39568]
[1729776788011,44.0078,2529.6,2528.9,3.2078]
[1729776788224,0.3957,2529.0,2528.9,3.60351]
[1729776788520,0.3957,2529.0,2528.8,2.47080195]
[1729776788521,0.39574,2528.8,2528.7,0.24845172]
[1729776788928,0.39574,2528.8,2528.4,3.2078]
[1729776788929,7.1622,2528.8,2528.4,3.2078]
[1729776789121,0.39578,2528.5,2528.4,3.2078]
[1729776789318,4.9438,2528.7,2527.8,4.32073201]
[1729776789319,2.47080195,2528.6,2527.8,4.32073201]
[1729776789525,0.39586,2528.1,2528.0,0.39585]
[1729776789920,0.98953,2528.4,2527.9,2.86667195]
[1729776789921,0.39586,2528.0,2527.9,2.86667195]
[1729776790731,0.39586,2528.0,2527.9,2.47080195]
[1729776791229,0.39588,2527.9,2527.8,3.6349]
[1729776791538,0.39584,2528.2,2528.1,0.39583]
[1729776791738,0.4425,2528.3,2528.1,0.39583]
[1729776792038,0.39583,2528.3,2528.2,0.39582]
[1729776792428,0.83786,2528.7,2528.6,0.39577]
[1729776792736,0.39575,2528.8,2528.7,0.39573]
[1729776793338,40.8,2529.1,2528.7,3.2078]
[1729776793538,1.85568,2529.3,2528.7,3.2078]
[1729776793736,0.39574,2528.9,2528.8,0.39572]
[1729776795435,0.39574,2528.8,2528.7,3.60354]
[1729776795735,0.39574,2528.8,2528.7,3.2078]
[1729776796132,0.39577,2528.6,2528.5,1.05313483]
[1729776796845,0.98935,2528.9,2528.8,0.39572]
[1729776796846,0.39574,2528.9,2528.8,0.39572]
[1729776797040,0.39572,2529.0,2528.9,0.39571]
[1729776797435,0.39575,2528.7,2528.6,3.60356]
[1729776797738,0.39575,2528.7,2528.1,1.97683135]
[1729776797739,0.39581,2528.3,2528.2,3.60363]
[1729776797930,0.39581,2528.3,2528.1,0.4318]
[1729776797931,0.3958,2528.5,2528.4,0.39579]
[1729776798136,0.39581,2528.4,2528.3,0.3958]
[1729776798333,0.39579,2528.5,2528.4,0.39579]
[1729776798537,3.2078,2529.0,2528.6,0.39575]
[1729776798538,0.39576,2528.7,2528.6,0.39575]
[1729776798739,41.2158,2529.2,2528.5,0.4248]
[1729776798944,0.39575,2528.8,2528.7,0.39574]
[1729776799151,0.39577,2528.7,2528.6,0.39576]
[1729776799650,0.39577,2528.6,2528.5,0.82058]
[1729776800140,0.39577,2528.6,2528.5,0.4248]
[1729776800442,0.39583,2528.2,2528.1,0.68631582]
[1729776800639,0.98931,2528.9,2528.1,3.6396]
[1729776800640,0.98949,2528.5,2528.1,3.6396]
[1729776800842,0.39583,2528.2,2528.1,4.03542]
[1729776801045,0.39583,2528.3,2528.2,0.39582]
[1729776801246,0.39583,2528.2,2528.1,0.82763]
[1729776801542,0.39582,2528.3,2528.2,0.39581]
[1729776801742,0.39581,2528.4,2528.3,0.3958]
[1729776801945,3.6459,2528.7,2528.1,3.6396]
[1729776802144,3.6459,2528.7,2528.4,0.39578]
[1729776802145,0.39579,2528.5,2528.4,0.39578]
[1729776802342,0.39578,2528.6,2528.5,0.39577]
[1729776802650,0.39575,2528.7,2528.6,0.39577]
[1729776803146,0.98928,2529.0,2528.5,0.4172]
[1729776803443,0.39576,2528.7,2528.6,0.39575]
[1729776804540,0.39574,2528.9,2528.8,0.39573]
[1729776804846,1.42694,2529.1,2528.7,0.39574]
[1729776804847,0.39575,2528.8,2528.7,0.39574]
[1729776805951,1.42694,2529.1,2528.5,0.4172]
[1729776806152,0.39577,2528.7,2528.6,0.39576]
[1729776808256,0.39577,2528.7,2528.6,4.35016]
[1729776808440,0.98928,2529.0,2528.6,4.35016]
[1729776808441,0.4377,2529.1,2528.6,6.99624157]
[1729776808646,0.3957,2529.1,2529.0,0.39569]
[1729776809148,0.3957,2529.1,2528.8,3.2078]
[1729776809149,0.39572,2529.0,2528.9,0.39571]
[1729776809748,0.39572,2528.9,2528.8,3.60353]
[1729776809946,0.39572,2528.9,2528.8,0.39573]
[1729776810453,0.39572,2528.9,2528.8,3.60353]
[1729776810655,3.627,2529.6,2528.8,3.2078]
[1729776810850,0.39571,2529.1,2529.0,0.39569]
[1729776811658,0.39572,2529.0,2528.9,0.39571]
[1729776811960,0.39574,2528.9,2528.8,0.39573]
[1729776812349,0.39574,2528.8,2528.7,1.02522773]
[1729776812651,0.98944,2528.6,2528.1,4.75283135]
[1729776812847,0.39581,2528.4,2528.3,0.3958]
[1729776813252,0.39583,2528.3,2528.2,0.39582]
[1729776813654,0.39583,2528.3,2528.1,3.6272]
[1729776813655,0.39583,2528.2,2528.1,4.02303]
[1729776813957,0.39583,2528.3,2528.2,0.39582]
[1729776814150,0.39583,2528.3,2528.1,3.6272]
[1729776814151,0.39583,2528.2,2528.1,4.02304]
[1729776814353,0.39583,2528.2,2528.1,3.6272]
[1729776814744,0.39583,2528.2,2528.1,6.49470682]
[1729776815152,40.8,2528.5,2528.1,6.09885682]
[1729776815457,40.8,2528.5,2528.2,0.39582]
[1729776815458,0.39583,2528.3,2528.2,0.39582]
[1729776815955,41.78947,2528.5,2528.1,6.09885682]
[1729776816160,0.39583,2528.2,2528.1,6.49470682]
[1729776816358,0.39583,2528.2,2528.1,3.2078]
[1729776817853,0.39583,2528.2,2528.0,0.59869785]
[1729776817854,0.39589,2527.9,2527.8,3.60369]
[1729776818062,1.40434,2528.1,2527.7,0.4171]
[1729776818259,1.40434,2528.1,2527.5,3.60373]
[1729776818260,0.98971,2527.9,2527.5,3.60373]
[1729776818557,0.39592,2527.6,2527.5,3.2078]
[1729776820050,0.39592,2527.6,2527.4,0.62007261]
[1729776820051,2.47165682,2527.8,2527.0,7.62049817]
[1729776820251,3.2078,2527.6,2526.9,0.80323]
[1729776820450,0.39602,2527.0,2526.9,0.4072]
[1729776820860,0.8269,2527.5,2526.7,3.2078]
[1729776821157,0.39605,2526.8,2526.7,3.2078]
[1729776821458,0.39611,2526.4,2526.3,3.2078]
[1729776822054,4.35451,2526.4,2526.3,3.2078]
[1729776822363,0.39611,2526.4,2526.3,3.2078]
[1729776822862,41.19611,2526.4,2526.3,3.2078]
[1729776823059,7.6546616,2526.9,2526.6,0.39608]
[1729776823060,0.39605,2526.8,2526.6,0.39608]
[1729776823254,0.39607,2526.7,2526.5,0.39609]
[1729776823449,0.4121,2526.9,2526.5,3.2078]
[1729776823650,0.4121,2526.9,2526.8,0.39605]
[1729776823953,0.396,2527.1,2526.8,0.39605]
[1729776824162,3.2078,2527.2,2526.7,3.60386]
[1729776824163,0.39605,2526.9,2526.7,3.60386]
[1729776824468,0.4425,2527.2,2526.7,6.2524316]
[1729776824656,3.2078,2527.8,2527.0,3.2078]
[1729776824860,3.2078,2527.8,2527.0,6.6484416]
[1729776824861,0.39597,2527.3,2527.0,6.6484416]
[1729776825158,3.2078,2527.8,2527.0,6.2524316]
[1729776825358,3.2078,2527.8,2527.3,0.39597]
[1729776825359,0.39593,2527.6,2527.3,0.39597]
[1729776825551,3.2078,2527.8,2527.3,0.39597]
[1729776825863,3.2078,2527.8,2527.1,0.8219]
[1729776826362,3.2078,2527.8,2527.4,3.2078]
[1729776826560,0.39593,2527.6,2527.4,3.2078]
[1729776826957,0.39594,2527.5,2527.4,3.2078]
[1729776827158,3.2078,2527.8,2527.4,3.2078]
[1729776827357,0.39593,2527.6,2527.4,3.2078]
[1729776827558,3.2078,2527.8,2527.4,3.2078]
[1729776827852,3.2078,2527.8,2527.5,3.0446316]
[1729776828058,3.2078,2527.8,2527.6,3.956]
[1729776828259,3.2078,2527.8,2527.7,0.4058]
[1729776828560,0.4027,2528.3,2527.7,4.3618]
[1729776828862,0.39587,2528.0,2527.7,3.6136]
[1729776829066,0.39587,2528.0,2527.7,4.0171]
[1729776829264,0.4027,2528.3,2527.7,4.41301]
[1729776829462,40.8,2528.4,2527.7,4.0171]
[1729776829766,0.39588,2527.9,2527.7,3.2078]
[1729776830067,0.39587,2528.0,2527.7,3.2078]
[1729776830268,42.20993,2528.4,2527.7,3.6037]
[1729776830559,3.2078,2528.7,2528.1,3.0446316]
[1729776830750,3.2078,2528.7,2528.2,0.8317]
[1729776831257,40.8,2528.9,2528.2,0.8317]
[1729776831258,0.39578,2528.6,2528.3,3.60361]
[1729776831452,0.39576,2528.7,2528.4,0.39579]
[1729776831651,40.8,2528.9,2528.6,3.2078]
[1729776831858,0.39575,2528.7,2528.6,3.2078]
[1729776832052,1.83675,2529.4,2528.6,3.2078]
[1729776832254,0.4204,2529.4,2528.9,3.2078]
[1729776832457,4.19676,2529.8,2528.9,3.2078]
[1729776832458,0.98896,2529.8,2528.9,3.2078]
[1729776832761,3.6229,2530.1,2529.2,3.2078]
[1729776832762,0.39567,2529.3,2529.2,3.2078]
[1729776833365,0.39565,2529.4,2529.2,3.2078]
[1729776833859,0.39565,2529.4,2529.2,7.1614]
[1729776834065,40.8,2529.7,2529.3,3.9536]
[1729776834260,40.8,2529.7,2529.2,3.60347]
[1729776834261,0.39561,2529.6,2529.2,3.60347]
[1729776834462,0.98892,2529.9,2529.2,3.2078]
[1729776834463,0.39564,2529.4,2529.2,3.2078]
[1729776834857,0.39564,2529.4,2529.3,3.9536]
[1729776835066,40.8,2529.9,2529.2,3.2078]
[1729776835259,0.39566,2529.3,2529.2,3.2078]
[1729776835654,0.39566,2529.3,2529.2,3.9536]
[1729776835867,0.39566,2529.3,2529.2,7.1614]
[1729776836075,0.39569,2529.1,2529.0,0.8553]
[1729776836263,0.989,2529.7,2529.0,0.8553]
[1729776836564,3.2078,2529.8,2529.0,1.251]
[1729776836959,41.78892,2529.9,2529.1,3.4403216]
[1729776837161,0.98888,2530.0,2529.2,3.60346]
[1729776837361,0.98888,2530.0,2529.4,3.2078]
[1729776837362,0.39564,2529.5,2529.4,3.2078]
[1729776837757,0.39564,2529.5,2529.4,7.1614]
[1729776838367,0.39564,2529.5,2529.4,3.2078]
[1729776840660,0.98896,2529.8,2529.2,0.19884055]
[1729776840661,0.39566,2529.3,2529.2,0.19884055]
[1729776840966,0.39569,2529.1,2529.0,3.6474]
[1729776841167,0.39569,2529.1,2529.0,3.2078]
[1729776842658,0.39568,2529.2,2529.0,3.2078]
[1729776842975,3.2078,2529.5,2529.0,3.2078]
[1729776842976,0.39569,2529.1,2529.0,3.2078]
[1729776846773,3.2078,2529.5,2529.0,6.2524316]
[1729776846980,0.39564,2529.5,2529.3,6.2524316]
[1729776847267,0.39563,2529.5,2529.4,0.8189]
[1729776848273,41.78892,2529.9,2529.4,0.8189]
[1729776848274,40.8,2529.9,2529.4,0.8189]
[1729776848570,0.4452,2530.0,2529.6,3.0446316]
[1729776848771,0.3956,2529.7,2529.6,3.0446316]
[1729776849876,0.39563,2529.5,2529.4,1.02312558]
[1729776850469,0.39564,2529.4,2529.3,3.2078]
[1729776852265,0.39564,2529.4,2529.3,3.41292493]
[1729776852575,0.98897,2529.8,2529.3,6.45755653]
[1729776852778,0.98895,2529.9,2529.6,6.2524316]
[1729776852779,0.39557,2529.9,2529.6,6.2524316]
[1729776853073,30.57071,2531.6,2529.6,6.2524316]
[1729776853074,0.39551,2530.3,2529.8,3.0446316]
[1729776853270,3.2078,2531.0,2530.1,6.2524316]
[1729776853470,1.2849,2531.3,2530.6,0.39545]
[1729776853471,0.39544,2530.8,2530.6,0.39545]
[1729776853671,4.0721,2531.3,2530.8,3.0446316]
[1729776854075,0.39541,2530.9,2530.8,3.0446316]
[1729776854568,5.06049,2531.3,2530.8,3.0446316]
[1729776854569,3.2078,2531.3,2530.8,3.0446316]
[1729776854767,3.60315,2531.3,2531.2,3.0446316]
[1729776854969,3.2078,2531.3,2531.2,3.0446316]
[1729776855169,0.39535,2531.3,2531.2,3.0446316]
[1729776855572,0.39532,2531.5,2531.2,3.4399916]
[1729776855770,0.39532,2531.5,2531.3,3.2078]
[1729776856170,41.78816,2531.9,2531.3,3.2078]
[1729776856370,0.39533,2531.5,2531.3,3.2078]
[1729776856570,0.39532,2531.5,2531.3,3.2078]
[1729776856782,0.39533,2531.5,2531.3,3.2078]
[1729776856980,41.78816,2531.9,2531.3,3.2078]
[1729776856981,0.39533,2531.4,2531.3,3.2078]
[1729776857182,0.39532,2531.5,2531.3,3.2078]
[1729776857478,0.39533,2531.4,2531.3,3.2078]
[1729776857779,0.39532,2531.5,2531.3,3.2078]